bitfinex-derivatives/quotes_BNBF0:USTF0_20250316
["timestamp","ask_amount","ask_price","bid_price","bid_amount"]
[1742141901530,0.27996377,607.91,606.36,0.357]
[1742141901831,0.27996377,607.9,606.36,0.357]
[1742141902028,0.27996377,607.89,606.36,0.357]
[1742141902228,0.27996377,607.92,606.36,0.357]
[1742141902427,0.27996377,607.91,606.36,0.357]
[1742141902625,0.27996377,607.9,606.36,0.357]
[1742141902828,0.27996377,607.89,606.36,0.357]
[1742141903028,0.28683052,607.91,606.36,0.357]
[1742141903029,0.27996377,607.88,606.36,0.357]
[1742141903229,0.27996377,607.87,606.36,0.357]
[1742141903525,0.27996377,607.86,606.36,0.357]
[1742141903725,0.27996377,607.85,606.36,0.357]
[1742141903930,0.27996377,607.84,606.36,0.357]
[1742141904129,0.27996377,607.83,606.36,0.357]
[1742141905628,0.27996377,607.8,606.36,0.357]
[1742141905827,0.27996377,607.79,606.36,0.357]
[1742141906027,0.32907185,607.77,606.36,0.357]
[1742141906429,0.27996377,607.76,606.36,0.357]
[1742141906631,0.32908268,607.75,606.36,0.357]
[1742141907030,0.27996377,607.74,606.36,0.357]
[1742141907533,0.27996377,607.74,606.37,0.32983162]
[1742141907733,0.27996377,607.74,606.37,0.68483162]
[1742141908831,0.27996377,607.74,606.38,0.30273758]
[1742141909334,0.27996377,607.73,606.38,0.30273758]
[1742141909534,3.77349124,608.37,606.38,0.30273758]
[1742141909733,0.60844022,608.36,606.38,0.30273758]
[1742141909931,0.27968751,608.35,606.38,0.30273758]
[1742141910230,0.27968751,608.34,606.38,0.30273758]
[1742141910434,0.27968751,608.35,606.38,0.30273758]
[1742141910629,0.27968751,608.33,606.38,0.30273758]
[1742141910834,0.27968751,608.32,606.38,0.30273758]
[1742141911234,0.27968751,608.32,606.37,0.68483162]
[1742141911235,0.27968751,608.31,606.37,0.68483162]
[1742141911435,0.27968751,608.35,606.37,0.68483162]
[1742141911631,0.27968751,608.34,606.38,0.30262916]
[1742141911833,0.27968751,608.35,606.38,0.30262916]
[1742141912730,0.27968751,608.34,606.38,0.30262916]
[1742141912932,0.27968751,608.33,606.38,0.30262916]
[1742141913133,0.27968751,608.32,606.38,0.30262916]
[1742141913333,0.27968751,608.35,606.38,0.30262916]
[1742141913633,0.32875271,608.36,606.39,0.30264892]
[1742141913830,0.27968272,608.35,606.38,0.30264892]
[1742141914036,0.27968272,608.34,606.39,0.30264892]
[1742141914234,0.27968272,608.33,606.38,0.30264892]
[1742141914433,0.27968272,608.32,606.38,0.30264892]
[1742141914636,0.27968272,608.31,606.4,0.3298153]
[1742141914836,0.27968272,608.3,606.4,0.3298153]
[1742141915037,0.27968272,608.35,606.4,0.3298153]
[1742141915234,0.32875271,608.36,606.4,0.7118153]
[1742141915439,0.27972294,608.35,606.4,0.7118153]
[1742141915631,0.27972294,608.35,606.41,0.30265219]
[1742141915832,0.32876352,608.34,606.43,0.32979898]
[1742141916241,0.27972294,608.33,606.44,0.30265219]
[1742141917839,0.27972294,608.32,606.44,0.30265219]
[1742141918037,0.27972294,608.32,606.43,0.32979898]
[1742141918235,0.27972294,608.31,606.43,0.32979898]
[1742141918438,0.27972294,608.33,606.43,0.32979898]
[1742141918639,0.27972294,608.3,606.43,0.32979898]
[1742141918838,0.27972294,608.29,606.43,0.32979898]
[1742141919035,0.27972294,608.28,606.43,0.32979898]
[1742141919239,0.27972294,608.27,606.43,0.32979898]
[1742141919433,0.27972294,608.26,606.43,0.32979898]
[1742141919633,0.27972294,608.25,606.43,0.32979898]
[1742141919837,0.32876352,608.34,606.43,0.32979898]
[1742141919838,0.27972294,608.24,606.43,0.32979898]
[1742141920041,0.27972294,608.23,606.43,0.32979898]
[1742141920237,0.27972294,608.22,606.43,0.32979898]
[1742141920438,0.27972294,608.21,606.43,0.32979898]
[1742141920640,0.27972294,608.2,606.43,0.32979898]
[1742141920835,0.27972294,608.19,606.43,0.32979898]
[1742141921042,0.27992067,608.18,606.43,0.32979898]
[1742141921242,0.27992067,608.17,606.43,0.32979898]
[1742141921442,0.27992067,608.16,606.43,0.32979898]
[1742141921644,0.27992067,608.15,606.43,0.32979898]
[1742141921843,0.27992067,608.14,606.43,0.32979898]
[1742141922039,0.27992067,608.13,606.43,0.32979898]
[1742141922347,0.27992067,608.12,606.43,0.32979898]
[1742141922545,0.27992067,608.11,606.43,0.32979898]
[1742141922844,0.27987232,608.1,606.43,0.32979898]
[1742141923038,0.27987232,608.09,606.43,0.32979898]
[1742141923250,0.27987232,608.08,606.43,0.32979898]
[1742141923551,0.60878182,608.07,606.43,0.32979898]
[1742141923752,0.27987232,608.06,606.43,0.32979898]
[1742141923945,0.3289095,608.07,606.43,0.32979898]
[1742141923946,0.27987232,608.05,606.43,0.32979898]
[1742141924246,0.60879804,608.04,606.43,0.32979898]
[1742141924445,0.27987232,608.03,606.43,0.32979898]
[1742141924645,0.27987232,608.02,606.43,0.32979898]
[1742141924850,0.27987232,608.01,606.43,0.32979898]
[1742141925044,0.27987232,608.0,606.43,0.32979898]
[1742141925549,0.27987232,607.99,606.43,0.32979898]
[1742141925752,0.32895818,607.98,606.43,0.32979898]
[1742141926752,0.27987232,607.97,606.43,0.32979898]
[1742141927253,0.27987232,607.97,606.44,0.30273489]
[1742141927647,0.27987232,607.97,606.46,0.32978267]
[1742141931150,0.27987232,607.97,606.47,0.30274355]
[1742141931754,0.27987232,607.97,606.49,0.32976636]
[1742141932956,0.27987232,607.97,606.5,0.30267848]
[1742141934059,0.27987232,607.97,606.52,0.32975004]
[1742141934252,0.27987232,607.97,606.53,0.30267848]
[1742141934560,0.27987232,607.97,606.55,0.32973374]
[1742141934754,0.27987232,607.97,606.56,0.30267848]
[1742141934951,0.27987232,607.97,606.58,0.32971743]
[1742141936457,0.27987232,607.96,606.58,0.32971743]
[1742141936960,0.27987232,607.95,606.58,0.32971743]
[1742141937150,0.27987232,607.94,606.58,0.32971743]
[1742141937351,0.27987232,607.93,606.58,0.32971743]
[1742141937852,0.27987232,607.92,606.58,0.32971743]
[1742141938058,0.27987232,607.91,606.58,0.32971743]
[1742141938258,0.27987232,607.9,606.58,0.32971743]
[1742141938459,0.27987232,607.89,606.58,0.32971743]
[1742141938656,0.27987232,607.88,606.58,0.32971743]
[1742141938856,0.27987232,607.97,606.58,0.32971743]
[1742141939060,0.27987232,607.87,606.59,0.354]
[1742141939359,0.27987232,607.96,606.59,0.354]
[1742141939562,0.27987232,607.86,606.59,0.354]
[1742141939859,0.27987232,607.85,606.59,0.354]
[1742141940056,0.27987232,607.97,606.59,0.354]
[1742141940260,0.27987232,607.96,606.59,0.354]
[1742141940458,0.27987232,607.95,606.59,0.354]
[1742141940959,0.27987232,607.94,606.59,0.354]
[1742141941259,0.27987232,607.93,606.59,0.354]
[1742141941456,0.27987232,607.92,606.59,0.354]
[1742141941654,0.27987232,607.91,606.59,0.354]
[1742141941855,0.27987232,607.9,606.59,0.354]
[1742141942055,0.27987232,607.97,606.59,0.354]
[1742141942360,0.27995034,607.89,606.59,0.354]
[1742141942955,0.27995034,607.88,606.59,0.354]
[1742141943159,0.27995034,607.97,606.59,0.354]
[1742141943355,0.27995034,607.87,606.59,0.354]
[1742141943659,0.32895818,607.98,606.59,0.354]
[1742141943660,0.27995034,607.86,606.59,0.354]
[1742141944253,0.27995034,607.97,606.59,0.354]
[1742141944454,0.27995034,607.96,606.59,0.354]
[1742141944659,0.27995034,607.95,606.59,0.354]
[1742141944961,0.27995034,607.94,606.59,0.354]
[1742141945158,0.27995034,607.97,606.59,0.354]
[1742141945359,0.27995034,607.93,606.59,0.354]
[1742141945553,0.32895818,607.98,606.6,0.32970656]
[1742141945554,0.27995034,607.92,606.6,0.32970656]
[1742141945962,0.27995034,607.97,606.6,0.32970656]
[1742141946164,0.32895818,607.98,606.6,0.32970656]
[1742141946461,0.27981629,607.97,606.6,0.32970656]
[1742141948062,0.27972746,607.96,606.6,0.32970656]
[1742141948262,0.27972746,607.97,606.6,0.32970656]
[1742141948456,0.27972746,607.96,606.6,0.32970656]
[1742141948862,0.27972746,607.97,606.6,0.32970656]
[1742141949063,0.27972746,607.96,606.6,0.32970656]
[1742141949265,0.27972746,607.97,606.6,0.32970656]
[1742141949462,0.27972746,607.96,606.6,0.32970656]
[1742141949863,0.27972746,607.95,606.6,0.32970656]
[1742141950263,0.27972746,607.97,606.6,0.32970656]
[1742141950463,0.27972746,607.96,606.61,0.30268258]
[1742141950665,0.27972746,607.96,606.62,0.32969569]
[1742141950868,0.27972746,607.95,606.62,0.32969569]
[1742141951166,0.27972746,607.94,606.62,0.32969569]
[1742141951366,0.27972746,607.97,606.62,0.32969569]
[1742141951562,0.27973103,607.96,606.62,0.32969569]
[1742141951961,0.27973103,607.95,606.62,0.32969569]
[1742141952162,0.27973103,607.97,606.62,0.32969569]
[1742141952362,0.27973103,607.96,606.62,0.32969569]
[1742141952764,0.27973103,607.95,606.62,0.32969569]
[1742141953164,0.27973103,607.94,606.62,0.32969569]
[1742141953569,0.27981513,607.93,606.62,0.32969569]
[1742141953770,0.27981513,607.97,606.62,0.32969569]
[1742141954069,0.27981513,607.96,606.62,0.32969569]
[1742141954269,0.27981513,607.97,606.62,0.32969569]
[1742141954570,0.32895818,607.98,606.62,0.32969569]
[1742141954571,0.27981513,607.96,606.62,0.32969569]
[1742141954764,0.27981513,607.97,606.62,0.32969569]
[1742141954969,0.32895818,607.98,606.62,0.32969569]
[1742141954970,0.27981513,607.96,606.62,0.32969569]
[1742141955365,0.32895818,607.98,606.62,0.32969569]
[1742141955569,0.27984803,607.97,606.62,0.32969569]
[1742141955865,0.27984803,607.96,606.62,0.32969569]
[1742141956169,0.27989796,607.95,606.62,0.32969569]
[1742141956571,0.27989796,607.94,606.62,0.32969569]
[1742141956767,0.27989796,607.93,606.63,0.354]
[1742141956967,0.27989796,607.97,606.63,0.354]
[1742141957272,0.27989796,607.96,606.63,0.354]
[1742141957474,0.27989796,607.97,606.63,0.354]
[1742141957672,0.27989796,607.95,606.63,0.354]
[1742141957875,0.27989796,607.94,606.63,0.354]
[1742141958171,0.27989796,607.97,606.63,0.354]
[1742141958372,0.27989796,607.93,606.63,0.354]
[1742141958572,0.27989796,607.92,606.63,0.354]
[1742141958767,0.27989796,607.97,606.63,0.354]
[1742141958968,0.32895818,607.98,606.63,0.354]
[1742141959166,0.27999253,607.97,606.63,0.354]
[1742141959568,0.27999253,607.96,606.63,0.354]
[1742141959772,0.27999253,607.95,606.63,0.354]
[1742141959973,0.27999253,607.94,606.63,0.354]
[1742141960270,0.27999253,607.93,606.63,0.354]
[1742141960472,0.32899606,607.91,606.63,0.354]
[1742141960974,0.27999253,607.9,606.63,0.354]
[1742141961169,0.3290123,607.88,606.63,0.354]
[1742141961676,0.27999253,607.87,606.63,0.354]
[1742141961875,0.27999253,607.86,606.63,0.354]
[1742141962077,0.27999253,607.85,606.63,0.354]
[1742141962275,0.27999253,607.84,606.63,0.354]
[1742141962474,0.32904478,607.82,606.63,0.354]
[1742141962875,0.27999253,607.81,606.63,0.354]
[1742141963075,0.27999253,607.8,606.63,0.354]
[1742141963376,0.32906643,607.78,606.63,0.354]
[1742141963576,0.27999253,607.77,606.63,0.354]
[1742141963875,0.32908268,607.75,606.63,0.354]
[1742141964072,0.27999253,607.74,606.63,0.354]
[1742141964270,0.32909892,607.72,606.63,0.354]
[1742141964469,0.27999253,607.71,606.63,0.354]
[1742141964673,0.27999253,607.7,606.63,0.354]
[1742141964874,0.32912058,607.68,606.63,0.354]
[1742141965076,0.27999253,607.67,606.63,0.354]
[1742141965271,0.27999253,607.66,606.63,0.354]
[1742141965476,0.32914225,607.64,606.63,0.354]
[1742141965672,0.27999253,607.63,606.63,0.354]
[1742141965872,0.27999253,607.62,606.63,0.354]
[1742141966073,0.27999253,607.61,606.63,0.354]
[1742141966277,0.27999253,607.6,606.63,0.354]
[1742141966476,0.32914225,607.64,606.63,0.354]
[1742141966677,0.28023383,607.63,606.63,0.354]
[1742141966879,0.28023383,607.62,606.63,0.354]
[1742141967174,0.28023383,607.61,606.63,0.354]
[1742141967482,0.32916934,607.59,606.63,0.354]
[1742141967782,0.28023383,607.58,606.63,0.354]
[1742141968074,0.28023383,607.57,606.63,0.354]
[1742141968272,0.28023383,607.56,606.63,0.354]
[1742141968480,0.28023383,607.55,606.63,0.354]
[1742141968678,0.28023383,607.54,606.63,0.354]
[1742141968879,0.28023383,607.53,606.63,0.354]
[1742141969179,0.28698664,607.56,606.63,0.354]
[1742141969180,0.28023383,607.52,606.63,0.354]
[1742141969480,0.3292181,607.5,606.63,0.354]
[1742141969681,0.28023383,607.49,606.63,0.354]
[1742141969874,0.28023383,607.48,606.63,0.354]
[1742141970077,0.28023383,607.47,606.63,0.354]
[1742141970478,0.28023383,607.46,606.63,0.354]
[1742141970880,0.3292181,607.5,606.63,0.354]
[1742141970881,0.28023383,607.45,606.63,0.354]
[1742141971281,0.28023383,607.44,606.63,0.354]
[1742141971479,0.28023383,607.43,606.63,0.354]
[1742141971786,0.28023383,607.42,606.63,0.354]
[1742141971977,0.28023383,607.41,606.63,0.354]
[1742141972186,0.3292181,607.5,606.63,0.354]
[1742141972389,0.28043237,607.49,606.63,0.354]
[1742141972689,0.28043237,607.48,606.63,0.354]
[1742141972889,0.28043237,607.47,606.63,0.354]
[1742141973090,0.28043237,607.46,606.63,0.354]
[1742141973389,0.28043237,607.45,606.63,0.354]
[1742141973788,0.28043237,607.44,606.63,0.354]
[1742141974184,0.28043237,607.43,606.63,0.354]
[1742141974389,0.28043237,607.42,606.63,0.354]
[1742141974791,0.28043237,607.41,606.63,0.354]
[1742141974991,0.28043237,607.4,606.63,0.354]
[1742141975288,0.28043237,607.39,606.63,0.354]
[1742141975491,0.28043237,607.38,606.63,0.354]
[1742141975789,0.28043237,607.37,606.63,0.354]
[1742141975991,0.28043237,607.36,606.63,0.354]
[1742141976296,0.28705174,607.42,606.63,0.354]
[1742141976297,0.28043237,607.35,606.63,0.354]
[1742141976487,0.28043237,607.34,606.63,0.354]
[1742141976683,0.28043237,607.33,606.63,0.354]
[1742141976883,0.28043237,607.32,606.63,0.354]
[1742141977190,0.28043237,607.31,606.63,0.354]
[1742141977389,0.28043237,607.3,606.63,0.354]
[1742141977589,0.3292181,607.5,606.63,0.354]
[1742141977789,0.28708963,607.3,606.63,0.354]
[1742141977985,0.28051405,607.29,606.63,0.354]
[1742141978191,0.28051405,607.28,606.63,0.354]
[1742141978389,0.60985684,607.27,606.63,0.354]
[1742141978689,0.28051405,607.26,606.63,0.354]
[1742141978890,0.28051405,607.25,606.63,0.354]
[1742141979085,0.28051405,607.24,606.63,0.354]
[1742141979490,0.28051405,607.23,606.63,0.354]
[1742141979692,0.28051405,607.22,606.63,0.354]
[1742141980194,0.28051405,607.21,606.63,0.354]
[1742141980395,0.28051405,607.2,606.63,0.354]
[1742141980695,0.28051405,607.19,606.48,0.373]
[1742141980890,0.28051405,607.18,604.49,0.28720454]
[1742141981092,0.28051405,607.17,604.51,0.33084647]
[1742141981291,0.28051405,607.16,604.52,0.30363745]
[1742141981493,0.28051405,607.15,604.52,0.30363745]
[1742141981689,0.28051405,607.14,604.52,0.30363745]
[1742141981994,0.32934279,607.27,604.52,0.30363745]
[1742141981995,0.28051405,607.13,604.52,0.30363745]
[1742141982388,0.28051405,607.12,604.52,0.30363745]
[1742141982591,0.28051405,607.11,604.52,0.30363745]
[1742141982793,0.28051405,607.1,604.52,0.30363745]
[1742141983089,0.32934279,607.27,604.52,0.30363745]
[1742141983090,0.28051405,607.09,604.52,0.30363745]
[1742141983292,0.28051405,607.09,604.51,0.33084647]
[1742141983293,0.32934279,607.27,604.51,0.33084647]
[1742141983492,0.28053007,607.26,604.52,0.63950618]
[1742141983693,0.28735751,607.08,604.53,0.30350618]
[1742141983992,0.28053007,607.07,604.65,0.33076986]
[1742141984294,0.28053007,607.06,604.66,0.30350618]
[1742141984496,0.28053007,607.05,604.66,0.30350618]
[1742141984796,0.28053007,607.04,604.66,0.65850618]
[1742141985190,0.28053007,607.03,604.67,0.30350618]
[1742141985494,0.28053007,607.02,604.67,0.30350618]
[1742141985693,0.28053007,607.01,604.78,0.33069876]
[1742141985899,0.28053007,607.0,604.79,0.30350618]
[1742141986299,0.28053007,606.99,604.79,0.30350618]
[1742141986692,0.32934279,607.27,604.78,0.33069876]
[1742141986899,0.28046112,607.26,604.79,0.30343649]
[1742141987098,0.28043905,607.25,604.8,0.3034141]
[1742141987294,0.28043905,607.24,604.92,0.33062223]
[1742141987499,0.28043905,607.23,604.93,0.3034141]
[1742141987700,0.28043905,607.22,604.95,0.33060583]
[1742141987900,0.28043905,607.21,604.96,0.3034141]
[1742141988100,0.28043905,607.2,604.96,0.3034141]
[1742141988299,0.28043905,607.19,604.96,0.3034141]
[1742141988493,0.28043905,607.18,604.96,0.3034141]
[1742141988697,0.28043905,607.17,604.98,0.33058944]
[1742141988899,0.28042171,607.16,604.99,0.30339638]
[1742141989199,0.28724366,607.18,604.98,0.33058944]
[1742141989200,0.28042171,607.15,604.98,0.33058944]
[1742141989501,0.28042171,607.14,605.01,0.33057304]
[1742141989896,0.28042171,607.13,605.01,0.33057304]
[1742141990101,0.329473,607.03,605.01,0.33057304]
[1742141990294,0.28042171,607.02,605.01,0.33057304]
[1742141990493,0.32948929,607.0,605.01,0.33057304]
[1742141990695,0.28042171,606.99,605.01,0.33057304]
[1742141990899,0.32950557,606.97,605.01,0.33057304]
[1742141991201,0.28042171,606.96,605.01,0.33057304]
[1742141991905,0.32952186,606.94,605.01,0.33057304]
[1742141992309,0.28042171,606.93,605.01,0.33057304]
[1742141992612,0.32953815,606.91,605.01,0.33057304]
[1742141993004,0.28056149,606.9,605.01,0.33057304]
[1742141993805,0.28056149,606.89,605.01,0.33057304]
[1742141994003,0.32953815,606.91,605.01,0.33057304]
[1742141994004,0.28056149,606.9,605.01,0.33057304]
[1742141994208,0.32955444,606.88,605.01,0.33057304]
[1742141994409,0.28056149,606.87,605.01,0.33057304]
[1742141994610,0.28056149,606.86,605.01,0.33057304]
[1742141994810,0.28056149,606.85,605.01,0.33057304]
[1742141995012,0.28056149,606.84,605.01,0.33057304]
[1742141995310,0.32958702,606.82,605.01,0.33057304]
[1742141995511,0.28056149,606.81,605.01,0.33057304]
[1742141995706,0.32960332,606.79,605.01,0.33057304]
[1742141995913,0.28056149,606.78,605.01,0.33057304]
[1742141996110,0.32961961,606.76,605.01,0.33057304]
[1742141996513,0.2806587,606.75,605.01,0.33057304]
[1742141996813,0.32963591,606.73,605.01,0.33057304]
[1742141997013,0.2806587,606.72,605.01,0.33057304]
[1742141997314,0.32965221,606.7,605.01,0.33057304]
[1742141997515,0.2806587,606.69,605.02,0.355]
[1742141997715,0.32966851,606.67,605.02,0.355]
[1742141997916,0.2806587,606.66,605.02,0.355]
[1742141998215,0.32968482,606.64,605.02,0.355]
[1742141998413,0.2806587,606.63,605.02,0.355]
[1742141998610,0.2806587,606.62,605.02,0.355]
[1742141998814,0.2806587,606.61,605.02,0.355]
[1742141999009,0.2806587,606.63,605.02,0.355]
[1742141999310,0.32970112,606.61,605.03,0.33056212]
[1742141999511,0.2806587,606.6,605.03,0.33056212]
[1742141999710,0.32971743,606.58,605.03,0.33056212]
[1742141999916,0.2806587,606.57,605.03,0.33056212]
[1742142000116,0.3297283,606.56,605.03,0.33056212]
[1742142000314,0.2806587,606.55,605.03,0.33056212]
[1742142000517,0.32973917,606.54,605.03,0.33056212]
[1742142000715,0.2806587,606.53,605.03,0.33056212]
[1742142001319,0.32973917,606.54,605.03,0.33056212]
[1742142001515,0.28056775,606.53,605.03,0.33056212]
[1742142001912,0.32975004,606.52,605.03,0.33056212]
[1742142002113,0.28056775,606.51,605.03,0.33056212]
[1742142002313,0.32976092,606.5,605.03,0.33056212]
[1742142002519,0.28056775,606.49,605.03,0.33056212]
[1742142002713,0.32977179,606.48,605.03,0.33056212]
[1742142002929,0.28056775,606.47,605.03,0.33056212]
[1742142003221,0.32978267,606.46,605.03,0.33056212]
[1742142003417,0.28056775,606.45,605.03,0.33056212]
[1742142003614,0.32979354,606.44,605.03,0.33056212]
[1742142003919,0.28056775,606.43,605.03,0.33056212]
[1742142004119,0.32980442,606.42,605.03,0.33056212]
[1742142004315,0.28056775,606.41,605.03,0.33056212]
[1742142004820,0.3298153,606.4,605.03,0.33056212]
[1742142005015,0.28056775,606.39,605.03,0.33056212]
[1742142006716,0.32982618,606.38,605.03,0.33056212]
[1742142006918,0.28056775,606.37,605.03,0.33056212]
[1742142007521,0.32983706,606.36,605.03,0.33056212]
[1742142007719,0.28056775,606.35,605.03,0.33056212]
[1742142007925,0.32984794,606.34,605.03,0.33056212]
[1742142008126,0.28056775,606.33,605.03,0.33056212]
[1742142008424,0.32985882,606.32,605.03,0.33056212]
[1742142008823,0.28056775,606.31,605.03,0.33056212]
[1742142009020,0.3298697,606.3,605.03,0.33056212]
[1742142009226,0.28056775,606.29,605.03,0.33056212]
[1742142009422,0.32988058,606.28,605.03,0.33056212]
[1742142009624,0.28056775,606.27,605.03,0.33056212]
[1742142009823,0.32989146,606.26,605.03,0.33056212]
[1742142010218,0.28056775,606.25,605.03,0.33056212]
[1742142010423,0.32990234,606.24,605.03,0.33056212]
[1742142010924,0.28068291,606.23,605.03,0.33056212]
[1742142011324,0.32991323,606.22,605.03,0.33056212]
[1742142011520,0.28068291,606.21,605.03,0.33056212]
[1742142013131,2.54496544,606.83,605.03,0.33056212]
[1742142013331,0.32959245,606.81,605.03,0.33056212]
[1742142013531,0.2804726,606.8,605.04,0.30345326]
[1742142013731,0.2804726,606.8,605.03,0.33056212]
[1742142014033,0.2804726,606.8,605.04,0.30345228]
[1742142014229,0.2804726,606.8,605.04,0.29925161]
[1742142014831,0.2804726,606.8,605.03,0.65056212]
[1742142017134,0.2804726,606.8,605.04,0.30341129]
[1742142017333,0.2804726,606.8,605.03,0.65056212]
[1742142018031,0.2804726,606.8,605.04,0.30340531]
[1742142018231,0.28043025,606.79,605.03,0.65056212]
[1742142018435,0.28043025,606.78,605.04,0.30340558]
[1742142018629,0.28043025,606.8,605.04,0.30340558]
[1742142018829,0.28043025,606.79,605.04,0.30340558]
[1742142019038,0.28043025,606.8,605.04,0.30340558]
[1742142021933,0.28028445,606.79,605.05,0.30325764]
[1742142022130,0.28028445,606.8,605.06,0.30325764]
[1742142022331,0.28028445,606.79,605.04,0.30325764]
[1742142022632,0.28028445,606.78,605.05,0.30325764]
[1742142023031,0.28028445,606.77,605.06,0.30325764]
[1742142023230,0.28028445,606.76,605.07,0.30325764]
[1742142023434,0.28028445,606.8,605.04,0.30325764]
[1742142023631,0.28028445,606.79,605.05,0.30325764]
[1742142023836,0.28028445,606.78,605.04,0.30325764]
[1742142024032,0.28028445,606.8,605.05,0.30325764]
[1742142024232,0.28028445,606.79,605.04,0.30325764]
[1742142024435,0.28028445,606.8,605.04,0.30325764]
[1742142024633,0.28028445,606.79,605.04,0.30325764]
[1742142024834,0.28028445,606.8,605.04,0.30325764]
[1742142025231,0.28028445,606.8,605.04,0.65825764]
[1742142025433,0.28028445,606.8,605.05,0.30325764]
[1742142027437,0.28028445,606.8,605.07,0.33054026]
[1742142027737,0.28028445,606.8,605.08,0.30325764]
[1742142029138,0.32959245,606.81,605.08,0.30325764]
[1742142030238,2.47111429,607.92,605.08,0.30325764]
[1742142030439,0.32906102,607.79,605.08,0.30325764]
[1742142030636,0.28019285,607.78,605.08,0.30325764]
[1742142030938,0.28019285,607.77,605.08,0.30325764]
[1742142031141,0.28015695,607.76,605.09,0.30312881]
[1742142031340,0.28015695,607.78,605.08,0.30312881]
[1742142032633,0.28705411,607.77,605.08,0.30312881]
[1742142032840,0.28015695,607.76,605.08,0.30312881]
[1742142033839,0.28015695,607.76,605.21,0.3304638]
[1742142034035,0.28015695,607.76,605.22,0.30312881]
[1742142034242,0.28015695,607.76,605.34,0.33039283]
[1742142034555,0.28015695,607.76,605.35,0.30312881]
[1742142034742,0.32906102,607.79,605.35,0.30312881]
[1742142034743,0.28702451,607.75,605.35,0.30312881]
[1742142034938,0.28015695,607.74,605.35,0.30312881]
[1742142036337,0.28015695,607.78,605.35,0.30312881]
[1742142036542,0.28015695,607.77,605.35,0.30312881]
[1742142036944,0.28015695,607.76,605.35,0.30312881]
[1742142037137,0.28015695,607.75,605.35,0.30312881]
[1742142037337,0.60924504,607.74,605.47,0.33032189]
[1742142037536,0.28015695,607.73,605.48,0.30312881]
[1742142037940,0.32908809,607.74,605.47,0.33032189]
[1742142039337,0.27991783,607.73,605.48,0.30288692]
[1742142039942,0.32908809,607.74,605.48,0.30288692]
[1742142039943,0.27991783,607.72,605.48,0.30288692]
[1742142040137,0.27991783,607.71,605.48,0.30288692]
[1742142040341,0.27991783,607.7,605.49,0.69588692]
[1742142040537,0.27991783,607.69,605.5,0.30288692]
[1742142040741,0.28009047,607.68,605.51,0.30306121]
[1742142040938,0.28009047,607.67,605.52,0.30306121]
[1742142041140,0.32908809,607.74,605.5,0.30306121]
[1742142041141,0.28009047,607.66,605.5,0.30306121]
[1742142041345,0.28009047,607.65,605.51,0.30306121]
[1742142041545,0.28009047,607.64,605.5,0.30306121]
[1742142041747,0.28009047,607.63,605.5,0.30306121]
[1742142041948,0.28009047,607.62,605.5,0.30306121]
[1742142042145,0.28009047,607.61,605.5,0.30306121]
[1742142042547,0.28009047,607.6,605.5,0.30306121]
[1742142042748,0.28009047,607.59,605.5,0.30306121]
[1742142042945,0.28009047,607.58,605.5,0.30306121]
[1742142043142,0.28009047,607.57,605.5,0.30306121]
[1742142043351,0.28009047,607.56,605.5,0.30306121]
[1742142043549,0.28009047,607.55,605.5,0.30306121]
[1742142043745,0.28009047,607.73,605.5,0.30306121]
[1742142043946,0.28009047,607.72,605.5,0.30306121]
[1742142044153,0.28009047,607.71,605.5,0.30306121]
[1742142044552,0.28009047,607.7,605.51,0.355]
[1742142044753,0.28009047,607.69,605.52,0.30306121]
[1742142044948,0.28009047,607.68,605.52,0.30306121]
[1742142045153,0.28009047,607.67,605.52,0.30306121]
[1742142045353,0.28009047,607.66,605.52,0.30306121]
[1742142045555,0.28009047,607.73,605.54,0.33028371]
[1742142045755,0.60918939,607.72,605.55,0.30306121]
[1742142045955,0.60919481,607.71,605.65,0.33022372]
[1742142046155,0.28009047,607.7,605.66,0.30306121]
[1742142046354,0.32910434,607.71,605.76,0.33016376]
[1742142046557,0.32911517,607.69,605.77,0.30298987]
[1742142046755,0.28001963,607.68,605.77,0.30298987]
[1742142049856,0.28001963,607.67,605.77,0.30298987]
[1742142050055,0.28001963,607.66,605.77,0.30298987]
[1742142050259,0.28001963,607.65,605.77,0.30298987]
[1742142050460,0.28001963,607.64,605.77,0.30298987]
[1742142050762,0.28001963,607.63,605.77,0.30298987]
[1742142050957,0.28001963,607.62,605.77,0.30298987]
[1742142051151,0.32911517,607.69,605.77,0.30298987]
[1742142051152,0.28001963,607.61,605.77,0.30298987]
[1742142051353,0.28001963,607.6,605.77,0.30298987]
[1742142051556,0.28001963,607.59,605.77,0.30298987]
[1742142051858,0.28016859,607.58,605.78,0.30314035]
[1742142052061,0.28016859,607.58,605.76,0.33016376]
[1742142052062,0.28016859,607.57,605.76,0.33016376]